fUST/lending_fUST_20250811
["ID","MTS","AMOUNT","RATE_DAILY","PERIOD"]
[378503602,1754887840343,-460.0,0.00020224,2]
[378503603,1754887840352,-460.0,0.00020224,2]
[378503604,1754887840361,-460.0,0.00020224,2]
[378503605,1754887840370,-460.0,0.00020224,2]
[378503606,1754887840379,-460.0,0.00020224,2]
[378503607,1754887840389,-695.54,0.00020224,2]
[378503608,1754887840398,-460.0,0.00020224,2]
[378503609,1754887840407,-460.0,0.00020224,2]
[378503610,1754887840417,-460.0,0.00020224,2]
[378503611,1754887840426,-623.63,0.00020224,2]
[378503612,1754887840437,-500.0,0.00020225,2]
[378503613,1754887840446,-460.0,0.00020225,2]
[378503614,1754887840455,-1199.09,0.00020225,2]
[378503615,1754887840465,-484.55,0.00020225,2]
[378503617,1754887840474,-838.22,0.00020225,2]
[378503618,1754887840483,-460.0,0.00020225,2]
[378503619,1754887840492,-460.0,0.00020225,2]
[378503620,1754887840501,-6035.54626925,0.00020226,2]
[378503621,1754887840510,-2443.72,0.00020226,2]
[378503622,1754887840520,-740.5,0.00020226,2]
[378503623,1754887840529,-467.2410421,0.00020226,2]
[378503624,1754887840538,-460.0,0.00020226,2]
[378503625,1754887840547,-460.0,0.00020226,2]
[378503626,1754887840556,-1312.43,0.00020226,2]
[378503627,1754887840565,-460.0,0.00020226,2]
[378503628,1754887840574,-460.0,0.00020226,2]
[378503629,1754887840584,-460.0,0.00020226,2]
[378503630,1754887840592,-1032.02,0.00020226,2]
[378503631,1754887840602,-717.98,0.00020226,2]
[378503632,1754887840611,-460.0,0.00020272,2]
[378503633,1754887840620,-460.0,0.00020272,2]
[378503634,1754887840629,-460.0,0.00020272,2]
[378503635,1754887840638,-460.0,0.00020272,2]
[378503636,1754887840647,-578.09,0.00020272,2]
[378503637,1754887840656,-460.0,0.00020272,2]
[378503638,1754887840666,-460.0,0.00020272,2]
[378503639,1754887840674,-697.63,0.00020272,2]
[378503640,1754887840684,-460.0,0.00020272,2]
[378503641,1754887840693,-158.94834413,0.00020272,2]
[378503642,1754887840704,-462.42548603,0.00020272,2]
[378503643,1754887840714,-460.0,0.00020272,2]
[378503644,1754887840724,-460.0,0.00020272,2]
[378503645,1754887840736,-460.0,0.00020272,2]
[378503646,1754887840749,-460.0,0.00020272,2]
[378503647,1754887840758,-460.0,0.00020272,2]
[378503648,1754887840767,-460.0,0.00020272,2]
[378503649,1754887840777,-460.0,0.00020272,2]
[378503650,1754887840786,-460.0,0.00020272,2]
[378503651,1754887840795,-460.0,0.00020272,2]
[378503652,1754887840804,-460.0,0.00020272,2]
[378503653,1754887840813,-460.0,0.00020272,2]
[378503654,1754887840822,-460.0,0.00020272,2]
[378503655,1754887840832,-460.0,0.00020272,2]
[378503656,1754887840842,-460.0,0.00020272,2]
[378503657,1754887840851,-460.0,0.00020272,2]
[378503658,1754887840861,-460.0,0.00020272,2]
[378503659,1754887840870,-618.85,0.00020272,2]
[378503660,1754887840880,-460.0,0.00020272,2]
[378503661,1754887840889,-460.0,0.00020272,2]
[378503662,1754887840899,-460.0,0.00020272,2]
[378503663,1754887840909,-460.0,0.00020272,2]
[378503664,1754887840918,-460.0,0.00020272,2]
[378503665,1754887840928,-460.0,0.00020273,2]
[378503666,1754887840937,-460.0,0.00020273,2]
[378503667,1754887840951,-1290.34,0.00020273,2]
[378503668,1754887840962,-200.0,0.00020297,15]
[378503669,1754887840971,-200.0,0.00020297,15]
[378503670,1754887840983,-200.0,0.00020297,15]
[378503671,1754887840993,-200.0,0.00020297,15]
[378503672,1754887841005,-200.0,0.00020297,15]
[378503673,1754887841016,-250.0,0.00020342,2]
[378503674,1754887841027,-151.0,0.00020342,2]
[378503675,1754887841036,-151.0,0.00020342,2]
[378503676,1754887841046,-250.0,0.00020342,2]
[378503677,1754887841056,-151.0,0.00020342,2]
[378503678,1754887841066,-151.0,0.00020342,2]
[378503679,1754887841075,-250.0,0.00020342,2]
[378503680,1754887841084,-151.0,0.00020342,2]
[378503681,1754887841094,-151.0,0.00020342,2]
[378503682,1754887841103,-250.0,0.00020342,2]
[378503683,1754887841113,-151.0,0.00020342,2]
[378503684,1754887841122,-289.68224253,0.00020342,2]
[378503685,1754887841132,-151.0,0.00020342,2]
[378503686,1754887841142,-151.0,0.00020342,2]
[378503687,1754887841151,-151.0,0.00020342,2]
[378503688,1754887841161,-151.0,0.00020342,2]
[378503689,1754887841171,-2183.31810187,0.00020342,2]
[378503690,1754887841180,-18502.69577858,0.00020342,2]
[378503691,1754887841189,-151.0,0.00020342,2]
[378503692,1754887841198,-500.0,0.00020342,2]
[378503693,1754887841208,-151.0,0.00020342,2]
[378503694,1754887841217,-500.0,0.00020342,2]
[378503695,1754887841227,-500.0,0.00020342,2]
[378503696,1754887841237,-151.0,0.00020342,2]
[378503697,1754887841247,-500.0,0.00020342,2]
[378503698,1754887841256,-151.0,0.00020342,2]
[378503699,1754887841266,-500.0,0.00020342,2]
[378503700,1754887841276,-151.0,0.00020342,2]
[378503701,1754887841286,-151.0,0.00020342,2]
[378503702,1754887841295,-500.0,0.00020342,2]
[378503703,1754887841305,-151.0,0.00020342,2]
[378503704,1754887841314,-500.0,0.00020342,2]
[378503705,1754887841323,-151.0,0.00020342,2]
[378503706,1754887841333,-500.0,0.00020342,2]
[378503707,1754887841342,-500.0,0.00020342,2]
[378503708,1754887841351,-151.0,0.00020342,2]
[378503709,1754887841361,-151.0,0.00020342,2]
[378503710,1754887841370,-151.0,0.00020342,2]
[378503711,1754887841380,-151.0,0.00020342,2]
[378503712,1754887841390,-151.0,0.00020342,2]
[378503713,1754887841399,-151.0,0.00020342,2]
[378503714,1754887841409,-151.0,0.00020342,2]
[378503715,1754887841418,-151.0,0.00020342,2]
[378503716,1754887841428,-151.0,0.00020342,2]
[378503717,1754887841437,-501.99732496,0.00020376,2]
[378503718,1754887841447,-500.0,0.00020376,2]
[378503719,1754887841456,-500.0,0.00020376,2]
[378503720,1754887841465,-500.0,0.00020399,2]
[378503721,1754887841475,-1392.54,0.00020399,2]
[378503722,1754887841484,-9024.5936246,0.000204,2]
[378503723,1754887841493,-501.14541372,0.00020407,2]
[378503724,1754887841503,-500.0,0.00020407,2]
[378503725,1754887841512,-250.0,0.00020422,2]
[378503726,1754887841522,-503.0583135,0.00020423,2]
[378503727,1754887841531,-500.0,0.00020439,2]
[378503728,1754887841540,-504.93492331,0.00020464,2]
[378503729,1754887841549,-789.52,0.00020497,2]
[378503730,1754887841558,-460.0,0.00020498,2]
[378503731,1754887841568,-460.0,0.00020498,2]
[378503732,1754887841577,-2195.78,0.00020498,2]
[378503733,1754887841586,-460.0,0.00020498,2]
[378503734,1754887841596,-460.0,0.00020498,2]
[378503735,1754887841605,-460.0,0.00020498,2]
[378503736,1754887841614,-1891.26,0.00020498,2]
[378503737,1754887841623,-460.0,0.00020498,2]
[378503738,1754887841632,-460.0,0.00020498,2]
[378503739,1754887841641,-460.0,0.00020498,2]
[378503740,1754887841650,-460.0,0.00020498,2]
[378503741,1754887841660,-1709.94,0.00020498,2]
[378503742,1754887841669,-1545.26,0.00020498,2]
[378503743,1754887841678,-460.0,0.00020498,2]
[378503744,1754887841688,-460.0,0.00020498,2]
[378503745,1754887841697,-460.0,0.00020498,2]
[378503746,1754887841707,-539.32,0.00020498,2]
[378503747,1754887841716,-460.0,0.00020498,2]
[378503748,1754887841725,-460.0,0.00020498,2]
[378503749,1754887841735,-695.54,0.00020498,2]
[378503750,1754887841744,-460.0,0.00020498,2]
[378503751,1754887841753,-460.0,0.00020498,2]
[378503752,1754887841762,-623.63,0.00020498,2]
[378503753,1754887841772,-460.0,0.00020499,2]
[378503754,1754887841781,-1199.09,0.00020499,2]
[378503755,1754887841790,-484.55,0.00020499,2]
[378503756,1754887841800,-838.22,0.00020499,2]
[378503757,1754887841809,-460.0,0.00020499,2]
[378503758,1754887841818,-460.0,0.00020499,2]
[378503759,1754887841827,-2443.72,0.000205,2]
[378503760,1754887841837,-500.0,0.000205,2]
[378503761,1754887841846,-740.5,0.000205,2]
[378503762,1754887841855,-1312.43,0.000205,2]
[378503763,1754887841865,-460.0,0.000205,2]
[378503764,1754887842001,-460.0,0.000205,2]
[378503765,1754887842011,-1032.02,0.000205,2]
[378503766,1754887842022,-717.98,0.000205,2]
[378503767,1754887842031,-1000.0,0.00020521,2]
[378503768,1754887842040,-513.04516821,0.00020521,2]
[378503769,1754887842050,-1000.0,0.00020521,2]
[378503770,1754887842059,-1000.0,0.00020521,2]
[378503771,1754887842068,-1000.0,0.00020521,2]
[378503772,1754887842077,-497.27539894,0.00020546,2]
[378503773,1754887842086,-460.0,0.00020546,2]
[378503774,1754887842095,-460.0,0.00020546,2]
[378503775,1754887842105,-460.0,0.00020546,2]
[378503776,1754887842114,-578.09,0.00020546,2]
[378503777,1754887842123,-460.0,0.00020546,2]
[378503778,1754887842132,-697.63,0.00020546,2]
[378503779,1754887842142,-460.0,0.00020546,2]
[378503780,1754887842151,-460.0,0.00020546,2]
[378503781,1754887842160,-460.0,0.00020546,2]
[378503782,1754887842169,-460.0,0.00020546,2]
[378503783,1754887842178,-460.0,0.00020546,2]
[378503784,1754887842187,-460.0,0.00020546,2]
[378503785,1754887842196,-618.85,0.00020546,2]
[378503786,1754887842205,-394.24133916,0.00020546,2]
[378503787,1754887842214,-460.0,0.00020546,2]
[378503788,1754887842224,-460.0,0.00020546,2]
[378503789,1754887842233,-460.0,0.00020546,2]
[378503790,1754887842242,-460.0,0.00020547,2]
[378503791,1754887842252,-1290.34,0.00020547,2]
[378503792,1754887842262,-1397.66240795,0.00020562,2]
[378503793,1754887842271,-190.26,0.000206,2]
[378503794,1754887842281,-1392.54,0.00020673,2]
[378503795,1754887842290,-789.52,0.00020771,2]
[378503796,1754887842299,-460.0,0.00020772,2]
[378503797,1754887842308,-460.0,0.00020772,2]
[378503798,1754887842317,-2195.78,0.00020772,2]
[378503799,1754887842326,-460.0,0.00020772,2]
[378503800,1754887842335,-460.0,0.00020772,2]
[378503801,1754887842344,-460.0,0.00020772,2]
[378503802,1754887842353,-1891.26,0.00020772,2]
[378503803,1754887842363,-460.0,0.00020772,2]
[378503804,1754887842372,-460.0,0.00020772,2]
[378503805,1754887842382,-460.0,0.00020772,2]
[378503806,1754887842391,-1709.94,0.00020772,2]
[378503807,1754887842400,-1545.26,0.00020772,2]
[378503808,1754887842409,-460.0,0.00020772,2]
[378503809,1754887842418,-439.20336698,0.00020772,2]
[378503810,1754887842427,-460.0,0.00020772,2]
[378503811,1754887842437,-282.21,0.00020772,2]
[378503812,1754887842446,-460.0,0.00020772,2]
[378503813,1754887842455,-695.54,0.00020772,2]
[378503814,1754887842464,-460.0,0.00020772,2]
[378503815,1754887842473,-460.0,0.00020772,2]
[378503816,1754887842482,-623.63,0.00020772,2]
[378503817,1754887842491,-500.0,0.00020773,2]
[378503818,1754887842501,-1199.09,0.00020773,2]
[378503819,1754887842510,-484.55,0.00020773,2]
[378503820,1754887842519,-838.22,0.00020773,2]
[378503821,1754887842528,-460.0,0.00020773,2]
[378503822,1754887842537,-2443.72,0.00020774,2]
[378503823,1754887842547,-740.5,0.00020774,2]
[378503824,1754887842556,-1312.43,0.00020774,2]
[378503825,1754887842566,-460.0,0.00020774,2]
[378503826,1754887842576,-460.0,0.00020774,2]
[378503827,1754887842585,-1032.02,0.00020774,2]
[378503828,1754887842594,-717.98,0.00020774,2]
[378503829,1754887842603,-460.0,0.0002082,2]
[378503830,1754887842613,-460.0,0.0002082,2]
[378503831,1754887842622,-578.09,0.0002082,2]
[378503832,1754887842632,-460.0,0.0002082,2]
[378503833,1754887842641,-697.63,0.0002082,2]
[378503834,1754887842650,-460.0,0.0002082,2]
[378503835,1754887842660,-460.0,0.0002082,2]
[378503836,1754887842669,-460.0,0.0002082,2]
[378503837,1754887842679,-460.0,0.0002082,2]
[378503838,1754887842689,-618.85,0.0002082,2]
[378503839,1754887842698,-460.0,0.0002082,2]
[378503840,1754887842707,-460.0,0.0002082,2]
[378503841,1754887842716,-460.0,0.0002082,2]
[378503842,1754887842725,-460.0,0.00020821,2]
[378503843,1754887842733,-1290.34,0.00020821,2]
[378503844,1754887842742,-1000.0,0.00020924,2]
[378503845,1754887842751,-1000.0,0.00020924,2]
[378503846,1754887842761,-500.0,0.00020947,2]
[378503847,1754887842770,-1392.54,0.00020947,2]
[378503848,1754887842779,-1000.0,0.00020955,2]
[378503849,1754887842788,-501.33316,0.00020973,2]
[378503850,1754887842798,-51554.0,0.00021,2]
[378503851,1754887842807,-1397.66240795,0.00021008,2]
[378503852,1754887842816,-789.52,0.00021045,2]
[378503853,1754887842826,-460.0,0.00021046,2]
[378503854,1754887842835,-2195.78,0.00021046,2]
[378503855,1754887842844,-460.0,0.00021046,2]
[378503856,1754887842853,-460.0,0.00021046,2]
[378503857,1754887842863,-460.0,0.00021046,2]
[378503858,1754887842873,-1891.26,0.00021046,2]
[378503859,1754887842882,-460.0,0.00021046,2]
[378503860,1754887842891,-581.58,0.00021046,2]
[378503861,1754887842901,-460.0,0.00021046,2]
[378503862,1754887842911,-1709.94,0.00021046,2]
[378503863,1754887842920,-1545.26,0.00021046,2]
[378503864,1754887842930,-460.0,0.00021046,2]
[378503865,1754887842939,-460.0,0.00021046,2]
[378503866,1754887842951,-460.0,0.00021046,2]
[378503867,1754887842961,-695.54,0.00021046,2]
[378503868,1754887842970,-167.9689315,0.00021046,2]
[378503869,1754887842979,-460.0,0.00021046,2]
[378503870,1754887842989,-623.63,0.00021046,2]
[378503871,1754887842999,-204.14,0.00021047,2]
[378503872,1754887843008,-1199.09,0.00021047,2]
[378503873,1754887843017,-484.55,0.00021047,2]
[378503874,1754887843027,-838.22,0.00021047,2]
[378503875,1754887843036,-460.0,0.00021047,2]
[378503876,1754887843045,-2443.72,0.00021048,2]
[378503877,1754887843054,-740.5,0.00021048,2]
[378503878,1754887843063,-1312.43,0.00021048,2]
[378503879,1754887843073,-460.0,0.00021048,2]
[378503880,1754887843083,-460.0,0.00021048,2]
[378503881,1754887843092,-1032.02,0.00021048,2]
[378503882,1754887843101,-717.98,0.00021048,2]
[378503883,1754887843110,-1500.0,0.00021068,2]
[378503884,1754887843120,-1612.23277963,0.00021068,2]
[378503885,1754887843129,-1500.0,0.00021068,2]
[378503886,1754887843139,-460.0,0.00021094,2]
[378503887,1754887843148,-460.0,0.00021094,2]
[378503888,1754887843158,-578.09,0.00021094,2]
[378503889,1754887843168,-460.0,0.00021094,2]
[378503890,1754887843177,-697.63,0.00021094,2]
[378503891,1754887843186,-460.0,0.00021094,2]
[378503892,1754887843196,-460.0,0.00021094,2]
[378503893,1754887843204,-329.70133524,0.00021094,2]
[378503894,1754887843213,-460.0,0.00021094,2]
[378503895,1754887843223,-618.85,0.00021094,2]
[378503896,1754887843232,-460.0,0.00021094,2]
[378503897,1754887843240,-307.33532359,0.00021094,2]
[378503898,1754887843249,-460.0,0.00021094,2]
[378503899,1754887843259,-460.0,0.00021095,2]
[378503900,1754887843268,-1290.34,0.00021095,2]
[378503901,1754887843277,-160.0,0.00021111,2]
[378503902,1754887843287,-417.15472785,0.00021112,2]
[378503903,1754887843295,-231.9940742,0.00021112,2]
[378503904,1754887843304,-215.4905783,0.00021112,2]
[378503905,1754887843313,-216.68257536,0.00021112,2]
[378503906,1754887843323,-461.69158338,0.00021112,2]
[378503907,1754887843332,-527.9539256,0.00021112,2]
[378503908,1754887843340,-843.18994796,0.00021112,2]
[378503909,1754887843350,-160.0,0.00021112,2]
[378503910,1754887843359,-12671.21867243,0.00021112,2]
[378503911,1754887843369,-160.0,0.00021112,2]
[378503912,1754887843378,-160.0,0.00021112,2]
[378503913,1754887843387,-160.0,0.00021112,2]
[378503914,1754887843396,-160.0,0.00021112,2]
[378503915,1754887843405,-160.0,0.00021112,2]
[378503916,1754887843414,-160.0,0.00021113,2]
[378503917,1754887843424,-160.0,0.00021113,2]
[378503918,1754887843433,-461.69158338,0.00021212,10]
[378503919,1754887843442,-417.15472785,0.00021212,10]
[378503920,1754887843451,-12671.21867243,0.00021212,10]
[378503921,1754887843460,-215.4905783,0.00021212,10]
[378503922,1754887843470,-1392.54,0.00021221,2]
[378503923,1754887843479,-1000.0,0.00021222,2]
[378503924,1754887843488,-500.0,0.00021233,2]
[378503925,1754887843497,-160.0,0.0002125,2]
[378503926,1754887843510,-789.52,0.00021319,2]
[378503927,1754887843523,-460.0,0.0002132,2]
[378503928,1754887843536,-2195.78,0.0002132,2]
[378503929,1754887843549,-460.0,0.0002132,2]
[378503930,1754887843561,-460.0,0.0002132,2]
[378503931,1754887843571,-1891.26,0.0002132,2]
[378503932,1754887843582,-460.0,0.0002132,2]
[378503933,1754887843594,-460.0,0.0002132,2]
[378503934,1754887843605,-1709.94,0.0002132,2]
[378503935,1754887843616,-1545.26,0.0002132,2]
[378503936,1754887843628,-460.0,0.0002132,2]
[378503937,1754887843640,-460.0,0.0002132,2]
[378503938,1754887843652,-695.54,0.0002132,2]
[378503939,1754887843663,-460.0,0.0002132,2]
[378503940,1754887843675,-623.63,0.0002132,2]
[378503941,1754887843688,-533.35,0.00021321,2]
[378503942,1754887843700,-1199.09,0.00021321,2]
[378503943,1754887843712,-484.55,0.00021321,2]
[378503944,1754887843724,-838.22,0.00021321,2]
[378503945,1754887843735,-460.0,0.00021321,2]
[378503946,1754887843747,-2443.72,0.00021322,2]
[378503947,1754887843757,-740.5,0.00021322,2]
[378503948,1754887843768,-1312.43,0.00021322,2]
[378503949,1754887843780,-164.86494921,0.00021322,2]
[378503950,1754887843791,-460.0,0.00021322,2]
[378503951,1754887843803,-1032.02,0.00021322,2]
[378503952,1754887843814,-717.98,0.00021322,2]
[378503953,1754887843826,-460.0,0.00021368,2]
[378503954,1754887843836,-460.0,0.00021368,2]
[378503955,1754887843846,-578.09,0.00021368,2]
[378503956,1754887843856,-460.0,0.00021368,2]
[378503957,1754887843868,-697.63,0.00021368,2]
[378503958,1754887843878,-460.0,0.00021368,2]
[378503959,1754887843890,-460.0,0.00021368,2]
[378503960,1754887843902,-460.0,0.00021368,2]
[378503961,1754887843912,-618.85,0.00021368,2]
[378503962,1754887843924,-460.0,0.00021368,2]
[378503963,1754887843935,-460.0,0.00021368,2]
[378503964,1754887843949,-460.0,0.00021369,2]
[378503965,1754887843961,-1290.34,0.00021369,2]
[378503966,1754887843973,-952.6,0.00021452,2]
[378503967,1754887843984,-1397.66240795,0.00021454,2]
[378503968,1754887843996,-1500.0,0.00021472,2]
[378503969,1754887844007,-1500.0,0.00021472,2]
[378503970,1754887844017,-533.35,0.00021495,2]
[378503971,1754887844029,-1392.54,0.00021495,2]
[378503972,1754887844039,-2697.52,0.00021586,3]
[378503973,1754887844049,-1348.76,0.00021586,3]
[378503974,1754887844060,-674.38,0.00021586,3]
[378503975,1754887844071,-337.18,0.00021586,3]
[378503976,1754887844086,-789.52,0.00021593,2]
[378503977,1754887844098,-460.0,0.00021594,2]
[378503978,1754887844108,-2195.78,0.00021594,2]
[378503979,1754887844118,-460.0,0.00021594,2]
[378503980,1754887844129,-243.84931234,0.00021594,2]
[378503981,1754887844140,-1891.26,0.00021594,2]
[378503982,1754887844150,-460.0,0.00021594,2]
[378503983,1754887844162,-460.0,0.00021594,2]
[378503984,1754887844174,-1545.26,0.00021594,2]
[378503985,1754887844184,-460.0,0.00021594,2]
[378503986,1754887844194,-1709.94,0.00021594,2]
[378503987,1754887844204,-460.0,0.00021594,2]
[378503988,1754887844214,-695.54,0.00021594,2]
[378503989,1754887844224,-533.82928394,0.00021594,2]
[378503990,1754887844235,-623.63,0.00021594,2]
[378503991,1754887844245,-1199.09,0.00021595,2]
[378503992,1754887844256,-484.55,0.00021595,2]
[378503993,1754887844266,-838.22,0.00021595,2]
[378503994,1754887844276,-460.0,0.00021595,2]
[378503995,1754887844287,-2443.72,0.00021596,2]
[378503996,1754887844297,-740.5,0.00021596,2]
[378503997,1754887844307,-1312.43,0.00021596,2]
[378503998,1754887844318,-1032.02,0.00021596,2]
[378503999,1754887844329,-717.98,0.00021596,2]
[378504000,1754887844339,-2000.0,0.00021616,2]
[378504001,1754887844350,-558.50465855,0.00021616,2]
[378504002,1754887844360,-460.0,0.00021642,2]
[378504003,1754887844371,-460.0,0.00021642,2]
[378504004,1754887844381,-578.09,0.00021642,2]
[378504005,1754887844392,-460.0,0.00021642,2]
[378504006,1754887844402,-697.63,0.00021642,2]
[378504007,1754887844413,-460.0,0.00021642,2]
[378504008,1754887844424,-533.35,0.00021642,2]
[378504009,1754887844434,-460.0,0.00021642,2]
[378504010,1754887844445,-460.0,0.00021642,2]
[378504011,1754887844455,-618.85,0.00021642,2]
[378504012,1754887844466,-460.0,0.00021642,2]
[378504013,1754887844476,-460.0,0.00021642,2]
[378504014,1754887844487,-460.0,0.00021643,2]
[378504015,1754887844497,-1290.34,0.00021643,2]
[378504016,1754887844508,-6674.21867253,0.00021655,2]
[378504017,1754887844518,-151.0,0.00021711,2]
[378504018,1754887844530,-952.6,0.00021765,2]
[378504019,1754887844540,-1392.54,0.00021769,2]
[378504020,1754887844551,-260.0,0.00021798,2]
[378504021,1754887844561,-789.52,0.00021867,2]
[378504022,1754887844572,-460.0,0.00021868,2]
[378504023,1754887844582,-2195.78,0.00021868,2]
[378504024,1754887844592,-460.0,0.00021868,2]
[378504025,1754887844602,-1891.26,0.00021868,2]
[378504026,1754887844613,-460.0,0.00021868,2]
[378504027,1754887844623,-460.0,0.00021868,2]
[378504028,1754887844634,-460.0,0.00021868,2]
[378504029,1754887844644,-1545.26,0.00021868,2]
[378504030,1754887844654,-1709.94,0.00021868,2]
[378504031,1754887844664,-460.0,0.00021868,2]
[378504032,1754887844675,-695.54,0.00021868,2]
[378504033,1754887844686,-623.63,0.00021868,2]
[378504034,1754887844696,-533.35,0.00021869,2]
[378504035,1754887844707,-1199.09,0.00021869,2]
[378504036,1754887844717,-484.55,0.00021869,2]
[378504037,1754887844727,-838.22,0.00021869,2]
[378504038,1754887844738,-460.0,0.00021869,2]
[378504039,1754887844748,-2443.72,0.0002187,2]
[378504040,1754887844759,-740.5,0.0002187,2]
[378504041,1754887844769,-1312.43,0.0002187,2]
[378504042,1754887844779,-1032.02,0.0002187,2]
[378504043,1754887844790,-717.98,0.0002187,2]
[378504044,1754887844800,-500.0,0.00021899,2]
[378504045,1754887844811,-1675.06026064,0.00021899,2]
[378504046,1754887844821,-1675.06026064,0.00021899,2]
[378504047,1754887844831,-168.57711724,0.00021899,2]
[378504048,1754887844842,-1675.06026064,0.00021899,2]
[378504049,1754887844852,-1675.06026064,0.00021899,2]
[378504050,1754887844862,-1675.06026064,0.00021899,2]
[378504051,1754887844872,-1675.06026064,0.00021899,2]
[378504052,1754887844883,-1675.06026064,0.00021899,2]
[378504053,1754887844893,-1675.06026064,0.00021899,2]
[378504054,1754887844903,-1675.06026064,0.00021899,2]
[378504055,1754887844913,-1675.06026064,0.00021899,2]
[378504056,1754887844923,-1675.06026064,0.00021899,2]
[378504057,1754887844934,-1675.06026064,0.00021899,2]
[378504058,1754887844947,-1675.06026064,0.00021899,2]
[378504059,1754887844958,-1675.06026064,0.00021899,2]
[378504060,1754887844970,-1675.06026064,0.00021899,2]
[378504061,1754887844981,-1675.06026064,0.00021899,2]
[378504062,1754887844993,-1675.06026064,0.00021899,2]
[378504063,1754887845005,-1397.66240795,0.000219,2]
[378504064,1754887845017,-9024.59362458,0.000219,2]
[378504065,1754887845031,-151.0,0.000219,3]
[378504066,1754887845043,-2007.0,0.00021906,2]
[378504067,1754887845054,-460.0,0.00021916,2]
[378504068,1754887845067,-460.0,0.00021916,2]
[378504069,1754887845081,-578.09,0.00021916,2]
[378504070,1754887845092,-460.0,0.00021916,2]
[378504071,1754887845104,-697.63,0.00021916,2]
[378504072,1754887845115,-420.1252652,0.00021916,2]
[378504073,1754887845126,-533.35,0.00021916,2]
[378504074,1754887845136,-460.0,0.00021916,2]
[378504075,1754887845147,-460.0,0.00021916,2]
[378504076,1754887845157,-618.85,0.00021916,2]
[378504077,1754887845168,-460.0,0.00021916,2]
[378504078,1754887845178,-460.0,0.00021916,2]
[378504079,1754887845190,-500.0,0.00021917,2]
[378504080,1754887845201,-500.0,0.00021917,2]
[378504081,1754887845212,-500.0,0.00021917,2]
[378504082,1754887845223,-504.71768055,0.00021917,2]
[378504083,1754887845234,-460.0,0.00021917,2]
[378504084,1754887845243,-1290.34,0.00021917,2]
[378504085,1754887845254,-10858.64,0.00021917,2]
[378504087,1754887845446,-500.0,0.00021958,2]
[378504088,1754887845464,-533.35,0.00021972,2]
[378504090,1754887845474,-533.35,0.00021972,2]
[378504091,1754887845485,-533.35,0.00021972,2]
[378504092,1754887845496,-509.5504893,0.00021973,2]
[378504093,1754887845508,-535.9525052,0.00021973,2]
[378504094,1754887845517,-500.0,0.00021973,2]
[378504095,1754887845527,-505.589476,0.00021973,2]
[378504096,1754887845537,-150.0,0.00021973,2]
[378504097,1754887845546,-500.24729121,0.00021973,2]
[378504098,1754887845555,-500.0,0.00021973,2]
[378504099,1754887845565,-500.0,0.00021973,2]
[378504100,1754887845574,-459.83092009,0.00021973,2]
[378504101,1754887845584,-600.0,0.00021973,2]
[378504102,1754887845596,-500.41696923,0.00021973,2]
[378504103,1754887845606,-500.0,0.00021973,2]
[378504104,1754887845615,-158.46401038,0.00021973,2]